fUST/lending_fUST_20240724
["ID","MTS","AMOUNT","RATE_DAILY","PERIOD"]
[333067095,1721814435215,-169.30103475,0.00013698,2]
[333067096,1721814435240,-500.0,0.00013698,2]
[333067097,1721814435263,-500.96182002,0.00013698,2]
[333067098,1721814435286,-500.0,0.00013698,2]
[333067099,1721814435309,-151.0,0.00013698,2]
[333067100,1721814435336,-151.0,0.00013698,2]
[333067101,1721814435361,-260.274796,0.00013698,2]
[333067102,1721814435386,-500.59630221,0.00013698,2]
[333067103,1721814435413,-500.0,0.00013698,2]
[333067104,1721814435437,-500.8028548,0.00013698,2]
[333067105,1721814435462,-500.0,0.00013698,2]
[333067106,1721814435486,-500.0,0.00013698,2]
[333067107,1721814435510,-500.0,0.00013698,2]
[333067108,1721814435533,-501.35482731,0.00013698,2]
[333067109,1721814435557,-500.0,0.00013698,2]
[333067110,1721814435581,-500.0,0.00013698,2]
[333067111,1721814435607,-576.7315831,0.00013698,2]
[333067112,1721814435637,-500.0,0.00013698,2]
[333067113,1721814435662,-501.69432774,0.00013698,2]
[333067114,1721814435686,-500.0,0.00013698,2]
[333067115,1721814435712,-259.9120708,0.00013698,2]
[333067116,1721814435736,-500.0,0.00013698,2]
[333067117,1721814435761,-500.0,0.00013698,2]
[333067118,1721814435784,-500.0,0.00013698,2]
[333067119,1721814435807,-500.0,0.00013698,2]
[333067120,1721814435829,-500.0,0.00013698,2]
[333067121,1721814435852,-500.66955161,0.00013698,2]
[333067122,1721814435874,-500.0,0.00013698,2]
[333067123,1721814435897,-823.0,0.00013698,2]
[333067124,1721814435921,-500.0,0.00013698,2]
[333067125,1721814435944,-500.0,0.00013698,2]
[333067126,1721814435969,-1211.2,0.00013698,2]
[333067127,1721814435993,-500.0,0.00013698,2]
[333067128,1721814436017,-500.0,0.00013698,2]
[333067129,1721814436041,-500.0,0.00013698,2]
[333067130,1721814436063,-511.00185338,0.00013698,2]
[333067131,1721814436087,-500.0,0.00013698,2]
[333067132,1721814436111,-500.0,0.00013698,2]
[333067133,1721814436134,-500.0,0.00013698,2]
[333067134,1721814436159,-505.16045781,0.00013698,2]
[333067135,1721814436182,-500.0,0.00013698,2]
[333067136,1721814436205,-500.0,0.00013698,2]
[333067137,1721814436229,-500.0,0.00013698,2]
[333067138,1721814436253,-500.0,0.00013698,2]
[333067139,1721814436277,-500.0,0.00013698,2]
[333067140,1721814436299,-502.78088519,0.00013698,2]
[333067141,1721814436321,-500.0,0.00013698,2]
[333067142,1721814436348,-500.0,0.00013698,2]
[333067143,1721814436561,-500.86174181,0.00013698,2]
[333067144,1721814436585,-500.0,0.00013698,2]
[333067145,1721814436612,-501.57012119,0.00013698,2]
[333067146,1721814436638,-559.66,0.00013698,2]
[333067147,1721814436664,-502.55428627,0.00013698,2]
[333067148,1721814436690,-500.0,0.00013698,2]
[333067149,1721814436713,-500.0,0.00013698,2]
[333067150,1721814436738,-500.0,0.00013698,2]
[333067151,1721814436762,-373.62596632,0.00013698,2]
[333067152,1721814436784,-842.41,0.00013698,2]
[333067153,1721814436805,-500.0,0.00013698,2]
[333067154,1721814436830,-500.0,0.00013698,2]
[333067155,1721814436854,-501.47284551,0.00013698,2]
[333067156,1721814436878,-500.0,0.00013698,2]
[333067157,1721814436900,-501.99693115,0.00013698,2]
[333067158,1721814436927,-500.0,0.00013698,2]
[333067159,1721814436949,-501.93067007,0.00013698,2]
[333067160,1721814436970,-500.0,0.00013698,2]
[333067161,1721814436992,-501.69515406,0.00013698,2]
[333067162,1721814437014,-500.0,0.00013698,2]
[333067163,1721814437036,-500.0,0.00013698,2]
[333067164,1721814437059,-503.03863908,0.00013698,2]
[333067165,1721814437081,-503.92825722,0.00013698,2]
[333067166,1721814437103,-500.0,0.00013698,2]
[333067167,1721814437125,-500.0,0.00013698,2]
[333067168,1721814437147,-500.0,0.00013698,2]
[333067169,1721814437170,-503.82159308,0.00013698,2]
[333067170,1721814437192,-501.98771963,0.00013698,2]
[333067171,1721814437213,-500.0,0.00013698,2]
[333067172,1721814437234,-502.5966782,0.00013698,2]
[333067173,1721814437256,-520.50698273,0.00013698,2]
[333067174,1721814437278,-511.36588293,0.00013698,2]
[333067175,1721814437300,-500.0,0.00013698,2]
[333067176,1721814437327,-500.0,0.00013698,2]
[333067177,1721814437352,-502.83005854,0.00013698,2]
[333067178,1721814437377,-503.40817414,0.00013698,2]
[333067179,1721814437401,-500.0,0.00013698,2]
[333067180,1721814437429,-500.0,0.00013698,2]
[333067181,1721814437452,-504.51026222,0.00013698,2]
[333067182,1721814437475,-500.0,0.00013698,2]
[333067183,1721814437499,-501.56978231,0.00013698,2]
[333067184,1721814437522,-500.0,0.00013698,2]
[333067185,1721814437547,-535.3,0.00013698,2]
[333067186,1721814437570,-503.23206971,0.00013698,2]
[333067187,1721814437596,-504.65622987,0.00013698,2]
[333067188,1721814437620,-500.0,0.00013698,2]
[333067189,1721814437644,-500.0,0.00013698,2]
[333067190,1721814437669,-500.0,0.00013698,2]
[333067191,1721814437691,-500.0,0.00013698,2]
[333067192,1721814437714,-502.01058163,0.00013698,2]
[333067193,1721814437737,-500.0,0.00013698,2]
[333067194,1721814437759,-500.0,0.00013698,2]
[333067195,1721814437783,-1672.7,0.00013698,2]
[333067196,1721814437807,-500.0,0.00013698,2]
[333067197,1721814437831,-500.0,0.00013698,2]
[333067198,1721814437857,-507.36230794,0.00013698,2]
[333067199,1721814437879,-500.0,0.00013698,2]
[333067200,1721814437899,-500.0,0.00013698,2]
[333067201,1721814437921,-503.62642544,0.00013698,2]
[333067202,1721814437944,-500.0,0.00013698,2]
[333067203,1721814437967,-500.0,0.00013698,2]
[333067204,1721814437989,-531.30514639,0.00013698,2]
[333067205,1721814438011,-500.0,0.00013698,2]
[333067206,1721814438033,-500.0,0.00013698,2]
[333067207,1721814438056,-500.0,0.00013698,2]
[333067208,1721814438078,-500.0,0.00013698,2]
[333067209,1721814438100,-493.12609082,0.00013698,2]
[333067210,1721814438122,-500.0,0.00013698,2]
[333067211,1721814438147,-500.0,0.00013698,2]
[333067212,1721814438170,-1425.31,0.00013698,2]
[333067213,1721814438192,-500.0,0.00013698,2]
[333067214,1721814438215,-743.8,0.00013698,2]
[333067215,1721814438238,-519.4138786,0.00013698,2]
[333067216,1721814438259,-503.49859509,0.00013698,2]
[333067217,1721814438282,-500.0,0.00013698,2]
[333067218,1721814438303,-500.0,0.00013698,2]
[333067219,1721814438325,-151.0,0.00013698,2]
[333067220,1721814438351,-500.0,0.00013698,2]
[333067221,1721814438373,-151.0,0.00013698,2]
[333067222,1721814438397,-151.0,0.00013698,2]
[333067223,1721814438424,-151.0,0.00013698,2]
[333067224,1721814438446,-151.0,0.00013698,2]
[333067225,1721814438469,-151.0,0.00013698,2]
[333067226,1721814438492,-151.0,0.00013698,2]
[333067227,1721814438514,-500.96194385,0.00013698,2]
[333067228,1721814438536,-254.803392,0.00013698,2]
[333067229,1721814438560,-502.10340475,0.00013698,2]
[333067230,1721814438583,-500.0,0.00013698,2]
[333067231,1721814438606,-510.76,0.00013698,2]
[333067232,1721814438628,-500.0,0.00013698,2]
[333067233,1721814438650,-503.1067398,0.00013698,2]
[333067234,1721814438673,-1117.31,0.00013698,2]
[333067235,1721814438695,-2486.6448927,0.00013698,2]
[333067236,1721814438716,-500.0,0.00013698,2]
[333067237,1721814438738,-151.0,0.00013698,2]
[333067238,1721814438760,-151.0,0.00013698,2]
[333067239,1721814438782,-156.921627,0.00013698,2]
[333067240,1721814438804,-151.0,0.00013698,2]
[333067241,1721814438826,-151.0,0.00013698,2]
[333067242,1721814438848,-151.0,0.00013698,2]
[333067243,1721814438870,-202.329614,0.00013698,2]
[333067244,1721814438892,-500.0,0.00013698,2]
[333067245,1721814438915,-500.0,0.00013698,2]
[333067246,1721814438938,-500.0,0.00013698,2]
[333067247,1721814438961,-547.19,0.00013698,2]
[333067248,1721814438983,-500.0,0.00013698,2]
[333067249,1721814439004,-500.0,0.00013698,2]
[333067250,1721814439027,-500.0,0.00013698,2]
[333067251,1721814439049,-514.39456576,0.00013698,2]
[333067252,1721814439071,-184.98242495,0.00013698,2]
[333067253,1721814439124,-500.0,0.00013698,2]
[333067254,1721814439147,-500.0,0.00013698,2]
[333067255,1721814439171,-501.02136815,0.00013698,2]
[333067256,1721814439194,-500.0,0.00013698,2]
[333067257,1721814439215,-500.0,0.00013698,2]
[333067258,1721814439237,-500.0,0.00013698,2]
[333067259,1721814439260,-502.85036016,0.00013698,2]
[333067260,1721814439283,-3872.04,0.00013698,2]
[333067261,1721814439306,-500.0,0.00013698,2]
[333067262,1721814439329,-629.04,0.00013698,2]
[333067263,1721814439350,-500.0,0.00013698,2]
[333067264,1721814439374,-500.0,0.00013698,2]
[333067265,1721814439398,-500.0,0.00013698,2]
[333067266,1721814439424,-503.44607978,0.00013698,2]
[333067267,1721814439448,-500.0,0.00013698,2]
[333067268,1721814439472,-500.0,0.00013698,2]
[333067269,1721814439495,-500.0,0.00013698,2]
[333067270,1721814439520,-500.0,0.00013698,2]
[333067271,1721814439543,-500.0,0.00013698,2]
[333067272,1721814439565,-500.0,0.00013698,2]
[333067273,1721814439588,-1595.26,0.00013698,2]
[333067274,1721814439611,-500.0,0.00013698,2]
[333067275,1721814439633,-500.0,0.00013698,2]
[333067276,1721814439654,-500.0,0.00013698,2]
[333067277,1721814439676,-500.0,0.00013698,2]
[333067278,1721814439698,-500.0,0.00013698,2]
[333067279,1721814439719,-449.72840881,0.00013698,2]
[333067280,1721814439741,-1827.67,0.00013698,2]
[333067281,1721814439762,-512.43730148,0.00013698,2]
[333067282,1721814439783,-151.53266731,0.00013698,2]
[333067283,1721814439804,-500.0,0.00013698,2]
[333067284,1721814439826,-722.89,0.00013698,2]
[333067285,1721814439851,-500.0,0.00013698,2]
[333067286,1721814439874,-500.0,0.00013698,2]
[333067287,1721814439897,-500.0,0.00013698,2]
[333067288,1721814439921,-500.0,0.00013698,2]
[333067289,1721814439944,-500.0,0.00013698,2]
[333067290,1721814439965,-500.0,0.00013698,2]
[333067291,1721814439986,-500.0,0.00013698,2]
[333067292,1721814440007,-500.0,0.00013698,2]
[333067293,1721814440028,-500.0,0.00013698,2]
[333067294,1721814440050,-500.0,0.00013698,2]
[333067295,1721814440072,-2714.96,0.00013698,2]
[333067296,1721814440093,-500.0,0.00013698,2]
[333067297,1721814440115,-500.0,0.00013698,2]
[333067298,1721814440137,-500.0,0.00013698,2]
[333067299,1721814440159,-500.0,0.00013698,2]
[333067300,1721814440180,-500.0,0.00013698,2]
[333067301,1721814440201,-500.0,0.00013698,2]
[333067302,1721814440222,-500.0,0.00013698,2]
[333067303,1721814440244,-500.0,0.00013698,2]
[333067304,1721814440267,-500.0,0.00013698,2]
[333067305,1721814440290,-500.0,0.00013698,2]
[333067306,1721814440313,-181.128131,0.00013698,2]
[333067307,1721814440335,-181.128131,0.00013698,2]
[333067308,1721814440357,-181.128131,0.00013698,2]
[333067309,1721814440379,-181.128131,0.00013698,2]
[333067310,1721814440402,-181.128131,0.00013698,2]
[333067311,1721814440427,-405.54593588,0.00013698,2]
[333067312,1721814440451,-181.128131,0.00013698,2]
[333067313,1721814440472,-181.128131,0.00013698,2]
[333067314,1721814440496,-181.128131,0.00013698,2]
[333067315,1721814440517,-500.0,0.00013698,2]
[333067316,1721814440538,-181.128131,0.00013698,2]
[333067317,1721814440559,-181.128131,0.00013698,2]
[333067318,1721814440582,-500.0,0.00013698,2]
[333067319,1721814440604,-181.128131,0.00013698,2]
[333067320,1721814440628,-181.128131,0.00013698,2]
[333067321,1721814440653,-807.58,0.00013698,2]
[333067322,1721814440675,-500.0,0.00013698,2]
[333067323,1721814440699,-181.128131,0.00013698,2]
[333067324,1721814440724,-500.0,0.00013698,2]
[333067325,1721814440751,-181.128131,0.00013698,2]
[333067326,1721814440773,-181.128131,0.00013698,2]
[333067327,1721814440795,-181.128131,0.00013698,2]
[333067328,1721814440818,-181.128131,0.00013698,2]
[333067329,1721814440841,-181.128131,0.00013698,2]
[333067330,1721814440865,-181.128131,0.00013698,2]
[333067331,1721814440888,-181.128133,0.00013698,2]
[333067332,1721814440916,-507.05,0.00013698,2]
[333067333,1721814440941,-503.41113926,0.00013698,2]
[333067334,1721814440963,-500.0,0.00013698,2]
[333067335,1721814440988,-500.0,0.00013698,2]
[333067336,1721814441012,-538.99709734,0.00013698,2]
[333067337,1721814441036,-500.0,0.00013698,2]
[333067338,1721814441063,-1459.22,0.00013698,2]
[333067339,1721814441084,-500.0,0.00013698,2]
[333067340,1721814441107,-589.17,0.00013698,2]
[333067341,1721814441128,-509.49098354,0.00013698,2]
[333067342,1721814441155,-385.48735477,0.00013698,2]
[333067343,1721814441179,-500.0,0.00013698,2]
[333067344,1721814441204,-500.0,0.00013698,2]
[333067345,1721814441231,-500.0,0.00013698,2]
[333067346,1721814441255,-500.0,0.00013698,2]
[333067347,1721814441279,-1992.32,0.00013698,2]
[333067348,1721814441304,-173.50801192,0.00013698,2]
[333067349,1721814441327,-500.0,0.00013698,2]
[333067350,1721814441350,-500.0,0.00013698,2]
[333067351,1721814441375,-500.0,0.00013698,2]
[333067352,1721814441402,-500.0,0.00013698,2]
[333067353,1721814441431,-1334.58,0.00013698,2]
[333067354,1721814441456,-736.84,0.00013698,2]
[333067355,1721814441479,-500.0,0.00013698,2]
[333067356,1721814441501,-500.0,0.00013698,2]
[333067357,1721814441523,-500.0,0.00013698,2]
[333067358,1721814441546,-500.0,0.00013698,2]
[333067359,1721814441569,-500.0,0.00013698,2]
[333067360,1721814441595,-500.0,0.00013698,2]
[333067361,1721814441619,-525.60341729,0.00013698,2]
[333067362,1721814441642,-571.01,0.00013698,2]
[333067363,1721814441666,-500.0,0.00013698,2]
[333067364,1721814441689,-502.06643325,0.00013698,2]
[333067365,1721814441712,-500.0,0.00013698,2]
[333067366,1721814441734,-500.0,0.00013698,2]
[333067367,1721814441757,-500.0,0.00013698,2]
[333067368,1721814441780,-720.65,0.00013698,2]
[333067369,1721814441803,-4736.54,0.00013698,2]
[333067370,1721814441827,-500.0,0.00013698,2]
[333067371,1721814441851,-500.0,0.00013698,2]
[333067372,1721814441875,-598.8295479,0.00013698,2]
[333067373,1721814441899,-500.0,0.00013698,2]
[333067374,1721814441927,-2140.66,0.00013698,2]
[333067375,1721814441952,-512.3967347,0.00013698,2]
[333067376,1721814441977,-3058.95,0.00013698,2]
[333067377,1721814442005,-500.0,0.00013698,2]
[333067378,1721814442035,-500.0,0.00013698,2]
[333067379,1721814442057,-500.0,0.00013698,2]
[333067380,1721814442079,-500.0,0.00013698,2]
[333067381,1721814442103,-501.4081892,0.00013698,2]
[333067382,1721814442126,-500.0,0.00013698,2]
[333067383,1721814442149,-500.0,0.00013698,2]
[333067384,1721814442174,-894.1,0.00013698,2]
[333067385,1721814442198,-605.23,0.00013698,2]
[333067386,1721814442223,-500.0,0.00013698,2]
[333067387,1721814442248,-501.00768326,0.00013698,2]
[333067388,1721814442274,-500.0,0.00013698,2]
[333067389,1721814442299,-9423.79,0.00013698,2]
[333067390,1721814442326,-500.0,0.00013698,2]
[333067391,1721814442351,-500.0,0.00013698,2]
[333067392,1721814442377,-1958.19,0.00013698,2]
[333067393,1721814442402,-2179.3,0.00013698,2]
[333067394,1721814442429,-502.04864841,0.00013698,2]
[333067395,1721814442454,-500.0,0.00013698,2]
[333067396,1721814442478,-500.0,0.00013698,2]
[333067397,1721814442506,-500.0,0.00013698,2]
[333067398,1721814442532,-5137.39,0.00013698,2]
[333067399,1721814442556,-2188.45,0.00013698,2]
[333067400,1721814442578,-500.0,0.00013698,2]
[333067401,1721814442600,-500.0,0.00013698,2]
[333067402,1721814442623,-507.82449784,0.00013698,2]
[333067403,1721814442645,-500.0,0.00013698,2]
[333067404,1721814442669,-1298.14,0.00013698,2]
[333067405,1721814442691,-533.52163942,0.00013698,2]
[333067406,1721814442714,-500.0,0.00013698,2]
[333067407,1721814442735,-500.0,0.00013698,2]
[333067408,1721814442758,-1935.32,0.00013698,2]
[333067409,1721814442782,-6757.75,0.00013698,2]
[333067410,1721814442805,-445.20897715,0.00013698,2]
[333067411,1721814442829,-500.0,0.00013698,2]
[333067412,1721814442855,-500.4132675,0.00013698,2]
[333067413,1721814442878,-659.65,0.00013698,2]
[333067414,1721814442900,-1374.1,0.00013698,2]
[333067415,1721814442924,-606.15,0.00013698,2]
[333067416,1721814442947,-500.0,0.00013698,2]
[333067417,1721814442973,-500.0,0.00013698,2]
[333067418,1721814442999,-500.0,0.00013698,2]
[333067419,1721814443023,-500.0,0.00013698,2]
[333067420,1721814443046,-500.0,0.00013698,2]
[333067421,1721814443071,-500.0,0.00013698,2]
[333067422,1721814443095,-432.29984313,0.00013698,2]
[333067423,1721814443121,-156.586389,0.00013698,2]
[333067424,1721814443148,-500.0,0.00013698,2]
[333067425,1721814443173,-638.20628179,0.00013698,2]
[333067426,1721814443201,-500.0,0.00013698,2]
[333067427,1721814443224,-500.0,0.00013698,2]
[333067428,1721814443246,-536.88,0.00013698,2]
[333067429,1721814443270,-718.21,0.00013698,2]
[333067430,1721814443293,-500.0,0.00013698,2]
[333067431,1721814443315,-500.0,0.00013698,2]
[333067432,1721814443339,-500.0,0.00013698,2]
[333067433,1721814443363,-500.0,0.00013698,2]
[333067434,1721814443387,-606.61856245,0.00013698,2]
[333067435,1721814443412,-500.0,0.00013698,2]
[333067436,1721814443437,-674.99,0.00013698,2]
[333067437,1721814443461,-500.0,0.00013698,2]
[333067438,1721814443485,-500.0,0.00013698,2]
[333067439,1721814443509,-501.06287468,0.00013698,2]
[333067440,1721814443531,-500.0,0.00013698,2]
[333067441,1721814443555,-500.0,0.00013698,2]
[333067442,1721814443580,-805.66,0.00013698,2]
[333067443,1721814443603,-500.0,0.00013698,2]
[333067444,1721814443630,-1112.76,0.00013698,2]
[333067445,1721814443652,-273.02582686,0.00013698,2]
[333067446,1721814443675,-500.0,0.00013698,2]
[333067447,1721814443698,-1659.02,0.00013698,2]
[333067448,1721814443721,-500.0,0.00013698,2]
[333067449,1721814443744,-500.0,0.00013698,2]
[333067450,1721814443767,-500.0,0.00013698,2]
[333067452,1721814443790,-16626.15,0.00013698,2]
[333067453,1721814443814,-500.0,0.00013698,2]
[333067454,1721814443837,-500.0,0.00013698,2]
[333067455,1721814443860,-623.24,0.00013698,2]
[333067456,1721814443883,-500.0,0.00013698,2]
[333067457,1721814443907,-501.41453675,0.00013698,2]
[333067458,1721814443931,-500.0,0.00013698,2]
[333067459,1721814443953,-500.79166299,0.00013698,2]
[333067460,1721814443976,-500.0,0.00013698,2]
[333067461,1721814444000,-1974.17,0.00013698,2]
[333067462,1721814444024,-1379.22,0.00013698,2]
[333067463,1721814444047,-515.23002487,0.00013698,2]
[333067464,1721814444070,-1825.77,0.00013698,2]
[333067465,1721814444093,-8007.46,0.00013698,2]
[333067466,1721814444116,-500.0,0.00013698,2]
[333067467,1721814444299,-500.0,0.00013698,2]
[333067468,1721814444331,-500.0,0.00013698,2]
[333067469,1721814444353,-500.0,0.00013698,2]
[333067470,1721814444376,-3735.2,0.00013698,2]
[333067471,1721814444399,-500.0,0.00013698,2]
[333067472,1721814444636,-503.92142146,0.00013698,2]
[333067473,1721814444660,-5066.17,0.00013698,2]
[333067474,1721814444684,-549.54,0.00013698,2]
[333067475,1721814444706,-500.0,0.00013698,2]
[333067476,1721814444730,-3181.3,0.00013698,2]
[333067477,1721814444752,-500.0,0.00013698,2]
[333067478,1721814444776,-500.0,0.00013698,2]
[333067479,1721814444799,-1371.65,0.00013698,2]
[333067480,1721814444820,-3725.0,0.00013698,2]
[333067481,1721814444842,-500.0,0.00013698,2]
[333067482,1721814444865,-825.27,0.00013698,2]
[333067483,1721814444887,-502.90401264,0.00013698,2]
[333067484,1721814444914,-280.43116125,0.00013698,2]
[333067485,1721814444938,-1580.48,0.00013698,2]
[333067486,1721814444964,-846.98,0.00013698,2]
[333067487,1721814444988,-501.25467314,0.00013698,2]
[333067488,1721814445015,-500.0,0.00013698,2]
[333067489,1721814445039,-151.0,0.00013698,2]
[333067490,1721814445062,-151.0,0.00013698,2]
[333067491,1721814445084,-151.0,0.00013698,2]
[333067492,1721814445108,-12603.71,0.00013698,2]
[333067493,1721814445130,-151.0,0.00013698,2]
[333067494,1721814445152,-151.0,0.00013698,2]
[333067495,1721814445175,-151.0,0.00013698,2]
[333067496,1721814445199,-500.0,0.00013698,2]
[333067497,1721814445221,-500.0,0.00013698,2]
[333067498,1721814445242,-151.0,0.00013698,2]
[333067499,1721814445264,-560.55,0.00013698,2]
[333067500,1721814445286,-295.769312,0.00013698,2]
[333067501,1721814445308,-500.01,0.00013698,2]
[333067502,1721814445329,-500.98039894,0.00013698,2]
[333067503,1721814445351,-500.0,0.00013698,2]
[333067504,1721814445374,-505.12774037,0.00013698,2]
[333067505,1721814445397,-503.47080388,0.00013698,2]
[333067506,1721814445424,-1733.88,0.00013698,2]
[333067507,1721814445447,-500.0,0.00013698,2]
[333067508,1721814445470,-502.76774404,0.00013698,2]
[333067509,1721814445496,-514.62468164,0.00013698,2]
[333067510,1721814445523,-500.0,0.00013698,2]
[333067511,1721814445548,-935.71,0.00013698,2]
[333067512,1721814445573,-500.0,0.00013698,2]
[333067513,1721814445596,-500.0,0.00013698,2]
[333067514,1721814445621,-500.0,0.00013698,2]
[333067515,1721814445647,-7236.91,0.00013698,2]
[333067516,1721814445672,-500.13206342,0.00013698,2]
[333067517,1721814445697,-728.62,0.00013698,2]
[333067518,1721814445720,-229.09271308,0.00013698,2]
[333067519,1721814445742,-8381.37,0.00013698,2]
[333067520,1721814445764,-500.0,0.00013698,2]
[333067521,1721814445787,-500.0,0.00013698,2]
[333067522,1721814445808,-425.70466051,0.00013698,2]
[333067523,1721814445830,-913.96,0.00013698,2]
[333067524,1721814445853,-523.34115974,0.00013698,2]
[333067525,1721814445879,-500.0,0.00013698,2]
[333067526,1721814445903,-500.0,0.00013698,2]
[333067527,1721814445930,-500.0,0.00013698,2]
[333067528,1721814445956,-1323.498922,0.00013698,2]
[333067529,1721814445981,-2241.48,0.00013698,2]
[333067530,1721814446005,-1323.498922,0.00013698,2]
[333067531,1721814446031,-2459.04,0.00013698,2]
[333067532,1721814446056,-1323.498922,0.00013698,2]
[333067533,1721814446081,-500.0,0.00013698,2]
[333067534,1721814446106,-1323.498922,0.00013698,2]
[333067535,1721814446131,-509.12328412,0.00013698,2]
[333067536,1721814446156,-500.0,0.00013698,2]
[333067537,1721814446181,-1323.498922,0.00013698,2]
[333067538,1721814446206,-521.7,0.00013698,2]
[333067539,1721814446232,-1323.498922,0.00013698,2]
[333067540,1721814446257,-500.0,0.00013698,2]
[333067541,1721814446282,-1323.498922,0.00013698,2]
[333067542,1721814446306,-1323.498922,0.00013698,2]
[333067543,1721814446331,-500.0,0.00013698,2]
[333067544,1721814446356,-1323.498922,0.00013698,2]
[333067545,1721814446379,-1323.498922,0.00013698,2]
[333067546,1721814446405,-1323.498922,0.00013698,2]
[333067547,1721814446439,-1323.498922,0.00013698,2]
[333067548,1721814446466,-1323.498922,0.00013698,2]
[333067549,1721814446489,-1323.498922,0.00013698,2]
[333067550,1721814446513,-1592.9,0.00013698,2]
[333067551,1721814446537,-1323.498922,0.00013698,2]
[333067552,1721814446561,-1323.498922,0.00013698,2]
[333067553,1721814446585,-1323.498922,0.00013698,2]
[333067554,1721814446608,-514.08156298,0.00013698,2]
[333067555,1721814446631,-1323.498922,0.00013698,2]
[333067556,1721814446655,-500.0,0.00013698,2]
[333067557,1721814446678,-1323.498922,0.00013698,2]
[333067558,1721814446702,-1323.498926,0.00013698,2]
[333067559,1721814446725,-654.57,0.00013698,2]
[333067560,1721814446751,-500.0,0.00013698,2]
[333067561,1721814446774,-500.0,0.00013698,2]
[333067562,1721814446798,-2036.12,0.00013698,2]
[333067563,1721814446822,-500.0,0.00013698,2]
[333067564,1721814446846,-2571.51,0.00013698,2]
[333067565,1721814446869,-500.0,0.00013698,2]
[333067566,1721814446892,-500.0,0.00013698,2]
[333067567,1721814446917,-681.03,0.00013698,2]
[333067568,1721814446943,-1394.98,0.00013698,2]
[333067569,1721814446965,-501.61061578,0.00013698,2]
[333067570,1721814446987,-500.0,0.00013698,2]
[333067571,1721814447009,-500.0,0.00013698,2]
[333067572,1721814447031,-500.0,0.00013698,2]
[333067573,1721814447054,-500.0,0.00013698,2]
[333067574,1721814447077,-500.0,0.00013698,2]
[333067575,1721814447133,-500.0,0.00013698,2]
[333067576,1721814447158,-575.5,0.00013698,2]
[333067577,1721814447182,-500.0,0.00013698,2]
[333067578,1721814447205,-500.0,0.00013698,2]
[333067579,1721814447229,-500.0,0.00013698,2]
[333067580,1721814447255,-508.77667255,0.00013698,2]
[333067581,1721814447281,-1166.75,0.00013698,2]
[333067582,1721814447306,-179.870975,0.00013698,2]
[333067583,1721814447332,-179.870975,0.00013698,2]
[333067584,1721814447357,-179.870975,0.00013698,2]
[333067585,1721814447380,-500.0,0.00013698,2]
[333067586,1721814447403,-500.0,0.00013698,2]
[333067587,1721814447430,-179.870975,0.00013698,2]
[333067588,1721814447455,-179.870975,0.00013698,2]
[333067589,1721814447480,-179.870975,0.00013698,2]
[333067590,1721814447506,-179.870975,0.00013698,2]
[333067591,1721814447530,-289.17767515,0.00013698,2]
[333067592,1721814450241,-210.82232485,0.00013698,2]
[333067593,1721814450265,-179.870975,0.00013698,2]
[333067594,1721814450288,-500.0,0.00013698,2]
[333067595,1721814450312,-500.0,0.00013698,2]